bitfinex-derivatives/quotes_BNBF0:USTF0_20250507
["timestamp","ask_amount","ask_price","bid_price","bid_amount"]
[1746651994164,0.29093463,598.62,597.77,4.07657684]
[1746651994367,1.27705579,598.61,597.77,4.07657684]
[1746651994565,1.27705579,598.6,597.77,4.07657684]
[1746651994771,1.27705579,598.59,597.77,4.07657684]
[1746651994970,1.27705579,598.58,597.77,4.07657684]
[1746651995170,1.27705579,598.57,597.77,4.07657684]
[1746651995366,2.297665,598.56,597.77,4.07657684]
[1746651995571,1.27705579,598.55,597.77,4.07657684]
[1746651995772,1.27705579,598.54,597.77,4.07657684]
[1746651995967,1.27705579,598.53,597.77,4.07657684]
[1746651996170,1.27705579,598.52,597.77,4.07657684]
[1746651996466,1.27705579,598.51,597.77,4.07657684]
[1746651996670,1.27705579,598.5,597.77,4.07657684]
[1746651996865,1.27705579,598.49,597.77,4.07657684]
[1746651997070,1.27705579,598.48,597.77,4.07657684]
[1746651997272,1.27705579,598.47,597.77,4.07657684]
[1746651997472,1.27705579,598.46,597.77,4.07657684]
[1746651997666,1.27705579,598.45,597.77,4.07657684]
[1746651997872,2.297665,598.44,597.77,4.07657684]
[1746651998070,1.27705579,598.43,597.77,4.07657684]
[1746651998271,1.27705579,598.42,597.77,4.07657684]
[1746651998471,1.27705579,598.41,597.77,4.07657684]
[1746651998766,1.27705579,598.4,597.77,4.07657684]
[1746651998966,2.297665,598.39,597.77,4.07657684]
[1746651999171,1.27705579,598.38,597.77,4.07657684]
[1746651999470,2.297665,598.37,597.77,4.07657684]
[1746651999773,1.27705579,598.36,597.77,4.07657684]
[1746651999968,1.27705579,598.35,597.77,4.07657684]
[1746652000166,2.297665,598.34,597.77,4.07657684]
[1746652000370,1.27705579,598.33,597.77,4.07657684]
[1746652000672,1.02060921,598.32,597.77,4.07657684]
[1746652001372,1.02060921,598.31,597.77,4.07657684]
[1746652002467,1.02060921,598.3,597.77,4.07657684]
[1746652004572,1.02060921,598.29,597.77,4.07657684]
[1746652005072,1.02060921,598.28,597.77,4.07657684]
[1746652005574,1.02060921,598.27,597.77,4.07657684]
[1746652006073,0.29094071,598.62,597.77,4.07657684]
[1746652006270,1.27840129,598.61,597.77,4.07657684]
[1746652006472,1.27840129,598.6,597.77,4.07657684]
[1746652006670,1.27840129,598.59,597.77,4.07657684]
[1746652006870,2.30030054,598.58,597.77,4.07657684]
[1746652007073,1.27840129,598.57,597.77,4.07657684]
[1746652007368,2.30030054,598.56,597.77,4.07657684]
[1746652007572,1.27840129,598.55,597.77,4.07657684]
[1746652007772,1.27840129,598.54,597.77,4.07657684]
[1746652007971,2.30030054,598.53,597.77,4.07657684]
[1746652008174,2.30030054,598.52,597.77,4.07657684]
[1746652008372,1.27840129,598.51,597.77,4.07657684]
[1746652008573,1.27840129,598.5,597.77,4.07657684]
[1746652008870,1.27840129,598.49,597.77,4.07657684]
[1746652009173,2.30030054,598.48,597.77,4.07657684]
[1746652009370,1.27840129,598.47,597.77,4.07657684]
[1746652009575,2.30030054,598.46,597.77,4.07657684]
[1746652009772,1.27840129,598.45,597.77,4.07657684]
[1746652009977,2.30030054,598.44,597.77,4.07657684]
[1746652010176,1.27840129,598.43,597.77,4.07657684]
[1746652010375,2.30030054,598.42,597.77,4.07657684]
[1746652010573,1.27840129,598.41,597.77,4.07657684]
[1746652010772,1.27840129,598.4,597.77,4.07657684]
[1746652010973,1.27840129,598.39,597.77,4.07657684]
[1746652011275,1.27840129,598.38,597.77,4.07657684]
[1746652011475,1.27840129,598.37,597.77,4.07657684]
[1746652011672,1.27840129,598.36,597.77,4.07657684]
[1746652011977,1.02189925,598.35,597.77,4.07657684]
[1746652012580,1.02189925,598.34,597.77,4.07657684]
[1746652012879,1.02189925,598.33,597.77,4.07657684]
[1746652013380,1.02189925,598.32,597.77,4.07657684]
[1746652013981,1.02189925,598.31,597.77,4.07657684]
[1746652014278,1.02189925,598.31,597.77,1.98357684]
[1746652014482,1.02189925,598.3,597.77,1.98357684]
[1746652015284,0.29093706,598.62,597.77,1.98357684]
[1746652015479,1.27780311,598.61,597.77,1.31257684]
[1746652015682,2.29996763,598.6,597.77,1.31257684]
[1746652015978,1.27780311,598.59,597.77,1.31257684]
[1746652016279,2.29996763,598.58,597.77,1.31257684]
[1746652016478,1.27780311,598.57,597.77,1.31257684]
[1746652016686,2.29996763,598.56,597.77,1.31257684]
[1746652016979,2.30033204,598.55,597.77,2.18657684]
[1746652017183,1.27816752,598.54,597.77,2.18657684]
[1746652017484,2.30033204,598.53,597.77,2.18657684]
[1746652017683,1.27816752,598.52,597.77,3.17557684]
[1746652017882,2.30033204,598.51,597.77,3.17557684]
[1746652018084,1.27816752,598.5,597.77,3.17557684]
[1746652018285,1.27816752,598.49,597.77,3.92957684]
[1746652018484,1.27816752,598.48,597.77,3.92957684]
[1746652018686,2.30033204,598.47,597.77,3.92957684]
[1746652018883,1.27816752,598.46,597.77,3.92957684]
[1746652019080,2.30033204,598.45,597.77,3.92957684]
[1746652019278,1.27816752,598.44,597.77,3.92957684]
[1746652019486,2.30033204,598.43,597.77,3.92957684]
[1746652019684,1.27816752,598.42,597.77,3.92957684]
[1746652019985,2.30033204,598.41,597.77,3.92957684]
[1746652020185,1.27816752,598.4,597.77,3.92957684]
[1746652020385,2.30033204,598.39,597.77,3.92957684]
[1746652020685,1.27816752,598.38,597.77,3.92957684]
[1746652020887,2.30033204,598.37,597.77,3.92957684]
[1746652021085,1.27816752,598.36,597.77,3.92957684]
[1746652021285,1.27816752,598.35,597.77,3.92957684]
[1746652021486,2.30036433,598.34,597.77,3.92957684]
[1746652021688,2.30036448,598.33,597.77,3.92957684]
[1746652021888,1.27819996,598.32,597.77,3.92957684]
[1746652022089,1.02216452,598.33,597.77,3.92957684]
[1746652022287,1.27823091,598.32,597.77,3.92957684]
[1746652022484,1.02216452,598.31,597.77,3.92957684]
[1746652023190,1.02216452,598.3,597.77,3.92957684]
[1746652023491,1.02216452,598.29,597.77,3.92957684]
[1746652023992,1.02216452,598.28,597.77,3.92957684]
[1746652024491,1.02216452,598.27,597.77,3.92957684]
[1746652025092,0.29092611,598.62,597.77,3.92957684]
[1746652025293,1.27826561,598.61,597.77,3.92957684]
[1746652025494,1.27826561,598.6,597.77,3.92957684]
[1746652025694,1.27826561,598.59,597.77,3.92957684]
[1746652025894,1.27826561,598.58,597.77,3.92957684]
[1746652026095,2.30058254,598.57,597.77,3.92957684]
[1746652026289,1.27826561,598.56,597.77,3.92957684]
[1746652026492,1.27826561,598.55,597.77,3.92957684]
[1746652026694,2.30058254,598.54,597.77,3.92957684]
[1746652026892,1.27826561,598.53,597.77,3.92957684]
[1746652027093,1.27826561,598.52,597.77,3.92957684]
[1746652027296,1.27826561,598.51,597.77,3.92957684]
[1746652027489,1.27826561,598.5,597.77,3.92957684]
[1746652027693,1.27826561,598.49,597.77,3.92957684]
[1746652027890,2.30058254,598.48,597.77,3.92957684]
[1746652028098,1.27826561,598.47,597.77,3.92957684]
[1746652028293,2.30058254,598.46,597.77,3.92957684]
[1746652028490,1.27826561,598.45,597.77,3.92957684]
[1746652028692,1.27826561,598.44,597.77,3.92957684]
[1746652028893,1.27826561,598.43,597.77,3.92957684]
[1746652029096,1.27826561,598.42,597.77,3.92957684]
[1746652029297,2.30058254,598.41,597.77,3.92957684]
[1746652029498,1.27826561,598.4,597.77,3.92957684]
[1746652029696,1.27826561,598.39,597.77,3.92957684]
[1746652029893,1.27826561,598.38,597.77,3.92957684]
[1746652030196,1.27826561,598.37,597.77,3.92957684]
[1746652030393,2.30058254,598.36,597.77,3.92957684]
[1746652030593,1.27826561,598.35,597.77,3.92957684]
[1746652030898,2.3005577,598.34,597.77,3.92957684]
[1746652031097,2.3005577,598.33,597.77,3.92957684]
[1746652031292,1.27824077,598.32,597.77,3.92957684]
[1746652031495,1.02231693,598.32,597.77,3.92957684]
[1746652031996,1.27823487,598.31,597.77,3.92957684]
[1746652032295,1.02231693,598.32,597.77,3.92957684]
[1746652032296,1.02231693,598.3,597.77,3.05557684]
[1746652032894,1.02231693,598.29,597.77,3.05557684]
[1746652033597,1.02231693,598.28,597.77,3.05557684]
[1746652033795,1.02231693,598.27,597.77,3.05557684]
[1746652034496,1.02231693,598.26,597.77,3.05557684]
[1746652034900,1.02231693,598.25,597.77,3.05557684]
[1746652035498,0.33370597,599.33,597.77,3.05557684]
[1746652035698,0.29094436,598.62,597.77,3.05557684]
[1746652035899,2.30105588,598.61,597.77,3.05557684]
[1746652036098,1.27852244,598.6,597.77,3.05557684]
[1746652036394,2.30104258,598.59,597.77,3.05557684]
[1746652036600,1.27850914,598.58,597.77,3.05557684]
[1746652036793,1.27850914,598.57,597.77,3.05557684]
[1746652036994,1.27850914,598.56,597.77,3.05557684]
[1746652037193,1.27850914,598.55,597.77,3.05557684]
[1746652037396,1.27850914,598.54,597.77,3.05557684]
[1746652037597,1.27850914,598.53,597.77,3.05557684]
[1746652037796,2.30104258,598.52,597.77,3.05557684]
[1746652038000,1.27850914,598.51,597.77,3.05557684]
[1746652038302,1.27850914,598.5,597.77,3.05557684]
[1746652038496,1.27850914,598.49,597.77,3.05557684]
[1746652038698,1.27850914,598.48,597.77,3.05557684]
[1746652038900,1.27850914,598.47,597.77,3.05557684]
[1746652039098,1.27850914,598.46,597.77,3.05557684]
[1746652039305,2.30104258,598.45,597.77,3.05557684]
[1746652039598,1.27850914,598.44,597.77,3.05557684]
[1746652039802,2.30104258,598.43,597.77,3.05557684]
[1746652040002,1.27850914,598.42,597.77,3.05557684]
[1746652040203,1.27850914,598.41,597.77,3.05557684]
[1746652040498,2.30104258,598.4,597.77,3.05557684]
[1746652040702,2.30104258,598.39,597.77,3.05557684]
[1746652040903,1.27850914,598.38,597.77,3.05557684]
[1746652041099,1.27850914,598.37,597.77,3.05557684]
[1746652041404,2.3025657,598.36,597.77,3.05557684]
[1746652041605,1.28003226,598.35,597.77,3.05557684]
[1746652041904,2.30235192,598.34,597.77,3.05557684]
[1746652042205,1.27981848,598.33,597.77,3.05557684]
[1746652042404,2.30235192,598.32,597.77,3.05557684]
[1746652042599,1.27981848,598.31,597.77,3.05557684]
[1746652042800,1.02253344,598.32,597.77,3.05557684]
[1746652043005,1.02253344,598.3,597.77,1.32357684]
[1746652043408,1.02253344,598.29,597.77,1.32357684]
[1746652043807,1.02253344,598.28,597.77,1.32357684]
[1746652044202,1.02253344,598.27,597.77,1.32357684]
[1746652044707,0.29092976,598.62,597.77,0.33457684]
[1746652044907,1.27793829,598.61,597.77,0.33457684]
[1746652045106,2.30030098,598.6,597.77,0.33457684]
[1746652045302,1.27781877,598.59,597.77,0.33457684]
[1746652045603,2.30018146,598.58,597.77,0.33457684]
[1746652045803,1.27781877,598.57,597.77,1.04857684]
[1746652046001,1.27781877,598.56,597.77,1.04857684]
[1746652046201,1.27781877,598.55,597.77,1.04857684]
[1746652046404,1.27781877,598.54,597.77,1.04857684]
[1746652046606,1.27781877,598.53,597.77,1.04857684]
[1746652046807,1.27781877,598.52,597.77,1.04857684]
[1746652047009,1.27781877,598.51,597.77,2.01857684]
[1746652047206,1.02236269,598.52,597.77,2.01857684]
[1746652047207,1.27781877,598.5,597.77,2.01857684]
[1746652047406,1.27781877,598.49,597.77,2.01857684]
[1746652047605,1.27781877,598.48,597.77,2.01857684]
[1746652047805,2.30018146,598.47,597.77,2.01857684]
[1746652048002,2.30018146,598.46,597.77,2.01857684]
[1746652048206,1.27781877,598.45,597.77,2.01857684]
[1746652048407,1.27781877,598.44,597.77,2.01857684]
[1746652048603,1.27781877,598.43,597.77,2.01857684]
[1746652048804,1.27781877,598.42,597.77,2.75557684]
[1746652049007,1.27781877,598.41,597.77,2.75557684]
[1746652049208,2.30018146,598.4,597.77,2.75557684]
[1746652049404,1.27781877,598.39,597.77,2.75557684]
[1746652049606,1.27781877,598.38,597.77,2.75557684]
[1746652049808,2.30018146,598.37,597.77,2.75557684]
[1746652050108,1.27781877,598.36,597.77,2.75557684]
[1746652050302,1.27781877,598.35,597.77,2.75557684]
[1746652050504,1.27781877,598.34,597.77,2.75557684]
[1746652050809,1.27781877,598.33,597.77,2.75557684]
[1746652051007,1.27861283,598.32,597.77,2.75557684]
[1746652051202,1.02236269,598.31,597.77,2.75557684]
[1746652051703,0.2909322,598.62,597.77,2.75557684]
[1746652051704,1.02236269,598.3,597.77,2.75557684]
[1746652052312,1.02236269,598.29,597.77,2.75557684]
[1746652053109,0.2909322,598.62,597.77,2.75557684]
[1746652053310,1.27862373,598.61,597.77,2.75557684]
[1746652053506,1.27862373,598.6,597.77,2.75557684]
[1746652053704,1.27862373,598.59,597.77,2.75557684]
[1746652053910,2.3012769,598.58,597.77,2.75557684]
[1746652054110,1.27862373,598.57,597.77,2.75557684]
[1746652054311,1.27862373,598.56,597.77,2.75557684]
[1746652054508,2.3012769,598.55,597.77,2.75557684]
[1746652054710,1.27862373,598.54,597.77,2.75557684]
[1746652054907,2.3012769,598.53,597.77,2.75557684]
[1746652055106,1.27862373,598.52,597.77,2.75557684]
[1746652055310,1.27862373,598.51,597.77,2.75557684]
[1746652055508,2.3012769,598.5,597.77,2.75557684]
[1746652055708,1.27862373,598.49,597.77,2.75557684]
[1746652055911,1.27862373,598.48,597.77,2.75557684]
[1746652056111,1.27862373,598.47,597.77,2.75557684]
[1746652056307,1.27862373,598.46,597.77,2.75557684]
[1746652056514,1.27862373,598.45,597.77,2.75557684]
[1746652056714,1.27862373,598.44,597.77,2.75557684]
[1746652056912,2.3012769,598.43,597.77,2.75557684]
[1746652057114,1.27862373,598.42,597.77,2.75557684]
[1746652057307,1.27862373,598.41,597.77,2.75557684]
[1746652057512,1.27862373,598.4,597.77,2.75557684]
[1746652057713,1.27862373,598.39,597.77,2.75557684]
[1746652057910,1.27862373,598.38,597.77,2.75557684]
[1746652058113,1.27862373,598.37,597.77,2.75557684]
[1746652058313,1.27862373,598.36,597.77,2.75557684]
[1746652058513,1.27862373,598.35,597.77,2.75557684]
[1746652058715,1.02265317,598.34,597.77,2.75557684]
[1746652059415,1.02265317,598.33,597.77,2.75557684]
[1746652059811,1.02265317,598.32,597.77,2.75557684]
[1746652060719,1.02265317,598.31,597.77,2.75557684]
[1746652061020,1.02265317,598.3,597.77,2.75557684]
[1746652061620,1.02265317,598.29,597.77,2.75557684]
[1746652062320,1.02265317,598.28,597.77,2.75557684]
[1746652062815,1.02265317,598.27,597.77,2.75557684]
[1746652063019,1.02265317,598.27,597.77,2.04157684]
[1746652063320,1.02265317,598.26,597.77,2.04157684]
[1746652063919,0.29093949,598.62,597.77,2.04157684]
[1746652064120,2.29527121,598.61,597.77,2.04157684]
[1746652064321,1.27403829,598.6,597.77,3.10857684]
[1746652064717,1.27417275,598.59,597.77,3.10857684]
[1746652065119,1.27417275,598.58,597.77,3.10857684]
[1746652065322,1.02123401,598.61,597.77,3.10857684]
[1746652065524,1.27440526,598.6,597.77,3.10857684]
[1746652065723,1.27440526,598.59,597.77,3.10857684]
[1746652065924,2.29563927,598.58,597.77,3.10857684]
[1746652066119,1.27440526,598.57,597.77,3.10857684]
[1746652066324,1.27440526,598.56,597.77,3.10857684]
[1746652066525,2.29563927,598.55,597.77,3.10857684]
[1746652066825,1.27440526,598.54,597.77,4.05857684]
[1746652067027,1.27364826,598.53,597.77,4.05857684]
[1746652067221,2.29488227,598.52,597.77,4.05857684]
[1746652067521,1.02123401,598.52,597.77,4.05857684]
[1746652068326,1.02123401,598.51,597.77,4.05857684]
[1746652068928,0.29086411,598.78,597.77,4.05857684]
[1746652069124,1.27246513,598.77,597.77,4.05857684]
[1746652069324,1.27246513,598.76,597.77,4.05857684]
[1746652069524,1.27246513,598.75,597.77,4.05857684]
[1746652069825,0.33370597,599.33,597.77,4.05857684]
[1746652069826,2.29070682,598.74,597.77,4.05857684]
[1746652070028,1.27246513,598.73,597.77,4.05857684]
[1746652070329,1.27246513,598.72,597.77,4.05857684]
[1746652070530,1.27246513,598.71,597.77,4.05857684]
[1746652070730,1.27246513,598.7,597.77,4.05857684]
[1746652071030,1.01824169,598.71,597.77,4.05857684]
[1746652071327,1.01824169,598.7,597.77,4.05857684]
[1746652071729,1.01824169,598.69,597.77,4.05857684]
[1746652072127,1.01824169,598.68,597.77,4.05857684]
[1746652072831,1.01824169,598.67,597.77,4.05857684]
[1746652073331,1.01824169,598.66,597.77,4.05857684]
[1746652073932,0.29082036,598.9,597.77,4.05857684]
[1746652074132,1.26839329,598.89,597.77,4.05857684]
[1746652074332,1.26832006,598.88,597.77,4.05857684]
[1746652074527,1.26832006,598.87,597.77,4.05857684]
[1746652074726,1.26832006,598.86,597.77,4.05857684]
[1746652074927,1.26832006,598.85,597.77,4.05857684]
[1746652075131,1.26832006,598.84,597.77,4.05857684]
[1746652075331,1.26832006,598.83,597.77,4.05857684]
[1746652075532,1.26832006,598.82,597.77,4.05857684]
[1746652075728,1.26832006,598.81,597.77,4.05857684]
[1746652076031,2.28470409,598.8,597.77,4.05857684]
[1746652076233,1.2671458,598.79,597.77,4.05857684]
[1746652076431,1.2671458,598.78,597.77,4.05857684]
[1746652076727,2.28352983,598.77,597.77,4.05857684]
[1746652076926,1.2671458,598.76,597.77,4.05857684]
[1746652077129,1.2671458,598.75,597.77,4.05857684]
[1746652077327,1.01638403,598.75,597.77,4.05857684]
[1746652077529,1.01638403,598.74,597.77,4.05857684]
[1746652078027,1.01638403,598.73,597.77,4.05857684]
[1746652078531,1.01638403,598.72,597.77,4.05857684]
[1746652079433,0.2908155,598.9,597.77,4.05857684]
[1746652079728,1.26597574,598.89,597.77,4.05857684]
[1746652079934,2.28097907,598.88,597.77,4.05857684]
[1746652080134,2.28097907,598.87,597.77,4.05857684]
[1746652080330,1.26597574,598.86,597.77,4.05857684]
[1746652080537,2.28097968,598.85,597.77,4.05857684]
[1746652080737,1.26597635,598.84,597.77,4.05857684]
[1746652080936,1.26597635,598.83,597.77,4.05857684]
[1746652081236,1.26596925,598.82,597.77,4.05857684]
[1746652081433,1.26596925,598.81,597.77,4.05857684]
[1746652081632,1.26596925,598.8,597.77,4.05857684]
[1746652081835,1.01500333,598.83,597.77,4.05857684]
[1746652082036,1.01500333,598.82,597.77,4.05857684]
[1746652082639,0.29078269,599.01,597.77,4.05857684]
[1746652082841,1.26499632,599.0,597.77,4.05857684]
[1746652083037,1.26499632,598.99,597.77,4.05857684]
[1746652083236,1.26499632,598.98,597.77,4.05857684]
[1746652083441,1.26499632,598.97,597.77,4.05857684]
[1746652083641,1.26499632,598.96,597.77,4.05857684]
[1746652083842,1.26499632,598.95,597.77,4.05857684]
[1746652084041,1.01420629,598.99,597.77,4.05857684]
[1746652084042,1.26499632,598.94,597.77,4.05857684]
[1746652084237,2.27920261,598.93,597.77,4.05857684]
[1746652084437,2.27920261,598.92,597.77,4.05857684]
[1746652084642,1.26499632,598.91,597.77,4.05857684]
[1746652085037,1.01420629,598.9,597.77,4.05857684]
[1746652085642,1.01420629,598.89,597.77,4.05857684]
[1746652086142,1.01420629,598.88,597.77,4.05857684]
[1746652086544,0.33370597,599.33,597.77,4.05857684]
[1746652086737,0.29077297,599.01,597.77,4.05857684]
[1746652087040,1.26311673,599.0,597.77,4.05857684]
[1746652087240,0.33370597,599.33,597.77,4.05857684]
[1746652087241,1.26311673,598.99,597.77,4.05857684]
[1746652087438,1.26311673,598.98,597.77,4.05857684]
[1746652087643,2.27552486,598.97,597.77,4.05857684]
[1746652087836,1.01240813,598.97,597.77,4.05857684]
[1746652088038,2.27510041,598.96,597.77,4.05857684]
[1746652088239,1.01240813,598.96,597.77,4.05857684]
[1746652088643,1.01240813,598.95,597.77,4.05857684]
[1746652089144,1.01240813,598.94,597.77,4.05857684]
[1746652089637,1.01240813,598.93,597.77,4.05857684]
[1746652090340,1.01240813,598.92,597.77,4.05857684]
[1746652090845,1.01240813,598.91,597.77,4.05857684]
[1746652091246,0.29076568,599.01,597.77,4.05857684]
[1746652091941,1.01146046,599.0,597.77,4.05857684]
[1746652092142,1.26187188,598.99,597.77,4.05857684]
[1746652092745,1.01146046,598.98,597.77,4.05857684]
[1746652093446,1.01146046,598.97,597.77,4.05857684]
[1746652094241,1.01146046,598.96,597.77,4.05857684]
[1746652094844,1.01146046,598.95,597.77,4.05857684]
[1746652095046,1.01146046,598.94,597.77,4.05857684]
[1746652095642,0.29073532,599.12,597.77,4.05857684]
[1746652095847,1.2601873,599.11,597.77,4.05857684]
[1746652096147,2.27081091,599.1,597.77,4.05857684]
[1746652096442,2.27081091,599.09,597.77,4.05857684]
[1746652096641,1.2601873,599.08,597.77,4.05857684]
[1746652096842,1.01062361,599.07,597.77,4.05857684]
[1746652097046,1.2601873,599.06,597.77,4.05857684]
[1746652097442,1.01062361,599.05,597.77,4.05857684]
[1746652097646,1.2601873,599.04,597.77,4.05857684]
[1746652097847,2.27005131,599.03,597.77,4.05857684]
[1746652098147,1.2594277,599.02,597.77,4.05857684]
[1746652098548,1.01062361,599.01,597.77,4.05857684]
[1746652098945,1.01062361,599.0,597.77,4.05857684]
[1746652099349,1.01062361,598.99,597.77,4.05857684]
[1746652099951,0.29072925,599.12,597.77,4.05857684]
[1746652100449,1.00991175,599.11,597.77,4.05857684]
[1746652100642,1.25931164,599.1,597.77,4.05857684]
[1746652100845,2.26922339,599.1,597.77,4.05857684]
[1746652101048,1.25931164,599.09,597.77,4.05857684]
[1746652101547,1.00991175,599.1,597.77,4.05857684]
[1746652101847,1.00991175,599.09,597.77,4.05857684]
[1746652102247,1.00991175,599.08,597.77,4.05857684]
[1746652102947,1.00991175,599.07,597.77,4.05857684]
[1746652103446,1.00991175,599.06,597.77,4.05857684]
[1746652104349,1.00991175,599.05,597.77,4.05857684]
[1746652105148,1.01136326,599.04,597.77,4.05857684]
[1746652105650,1.01136326,599.11,597.77,4.05857684]
[1746652105851,1.26225715,599.1,597.77,4.05857684]
[1746652106051,1.01136326,599.09,597.77,4.05857684]
[1746652106551,1.01136326,599.08,597.77,4.05857684]
[1746652107251,1.01136326,599.07,597.77,4.05857684]
[1746652107654,1.01136326,599.06,597.77,4.05857684]
[1746652108152,1.01136326,599.11,597.77,4.05857684]
[1746652108353,1.2619668,599.1,597.77,4.05857684]
[1746652108551,1.01136326,599.11,597.77,4.05857684]
[1746652108749,1.01136326,599.1,597.77,4.05857684]
[1746652109153,1.01136326,599.09,597.77,4.05857684]
[1746652109654,1.01136326,599.08,597.77,4.05857684]
[1746652110255,1.01136326,599.07,597.77,4.05857684]
[1746652110449,1.01136326,599.06,597.77,4.05857684]
[1746652111254,1.01136326,599.11,597.77,4.05857684]
[1746652111450,1.01136326,599.1,597.77,4.05857684]
[1746652111655,1.26282688,599.09,597.77,4.05857684]
[1746652112159,1.01136326,599.08,597.77,4.05857684]
[1746652112562,2.2743765,599.07,597.77,4.05857684]
[1746652112760,1.01136326,599.07,597.77,4.05857684]
[1746652112954,1.01136326,599.06,597.77,4.05857684]
[1746652113358,1.01136326,599.05,597.77,4.05857684]
[1746652113761,1.01136326,599.04,597.77,4.05857684]
[1746652114361,1.01136326,599.03,597.77,4.05857684]
[1746652114861,1.01136326,599.02,597.77,4.05857684]
[1746652115058,1.01136326,599.01,597.77,4.05857684]
[1746652115363,1.01136326,599.0,597.77,4.05857684]
[1746652115965,1.01136326,599.11,597.77,4.05857684]
[1746652116167,1.26376884,599.1,597.77,4.05857684]
[1746652116363,1.26405365,599.1,597.77,4.05857684]
[1746652116867,1.01136326,599.09,597.77,4.05857684]
[1746652117069,1.26405365,599.08,597.77,4.05857684]
[1746652117662,1.01136326,599.07,597.77,4.05857684]
[1746652117864,2.27541691,599.06,597.77,4.05857684]
[1746652118165,1.01136326,599.06,597.77,4.05857684]
[1746652118363,1.01136326,599.05,597.77,4.05857684]
[1746652118768,1.01136326,599.04,597.77,4.05857684]
[1746652119168,1.01136326,599.03,597.77,4.05857684]
[1746652119669,1.01136326,599.02,597.77,4.05857684]
[1746652120264,1.01136326,599.01,597.77,4.05857684]
[1746652120669,1.01136326,599.0,597.77,4.05857684]
[1746652120865,0.29072803,599.12,597.77,4.05857684]
[1746652121068,1.26688535,599.11,597.77,4.05857684]
[1746652121364,2.28080115,599.1,597.77,4.05857684]
[1746652121569,1.26688535,599.09,597.77,4.05857684]
[1746652121770,2.28080115,599.08,597.77,4.05857684]
[1746652122069,2.28080115,599.07,597.77,4.05857684]
[1746652122263,1.26688535,599.06,597.77,4.05857684]
[1746652122669,1.0139158,599.05,597.77,4.05857684]
[1746652123173,2.28136119,599.04,597.77,4.05857684]
[1746652123368,1.26744539,599.03,597.77,4.05857684]
[1746652123566,1.0139158,599.04,597.77,4.05857684]
[1746652123769,2.28138696,599.03,597.77,4.05857684]
[1746652123967,1.0139158,599.03,597.77,4.05857684]
[1746652124270,2.2824332,599.02,597.77,4.05857684]
[1746652124470,1.2685174,599.01,597.77,4.05857684]
[1746652124672,1.0139158,599.01,597.77,4.05857684]
[1746652125171,2.2823748,599.0,597.77,4.05857684]
[1746652125370,1.0139158,599.0,597.77,4.05857684]
[1746652126772,1.26885697,598.99,597.77,4.05857684]
[1746652126974,1.0139158,598.98,597.77,4.05857684]
[1746652127674,1.0139158,598.97,597.77,4.05857684]
[1746652128573,1.0139158,598.96,597.77,4.05857684]
[1746652129169,1.0139158,598.95,597.77,4.05857684]
[1746652130071,1.0139158,598.94,597.77,4.05857684]
[1746652130474,1.0139158,598.93,597.77,4.05857684]
[1746652130875,1.0139158,598.92,597.77,4.05857684]
[1746652131176,1.0139158,598.92,597.79,1.06273618]
[1746652131471,1.0139158,598.92,597.81,0.33455445]
[1746652131672,1.0139158,598.91,597.81,0.33455445]
[1746652132279,0.29073896,599.12,597.81,0.33455445]
[1746652132479,1.27005214,599.11,597.81,0.33455445]
[1746652132679,1.27005214,599.1,597.81,0.33455445]
[1746652132879,1.27005214,599.09,597.81,0.33455445]
[1746652133078,1.27005214,599.08,597.81,0.33455445]
[1746652133374,2.28714875,599.07,597.81,0.33455445]
[1746652133579,1.27005214,599.06,597.83,1.06273618]
[1746652133777,1.27005214,599.05,597.85,0.33453207]
[1746652133976,1.27005214,599.04,597.85,0.33453207]
[1746652134174,1.27005214,599.03,597.85,0.33453207]
[1746652134374,1.27005214,599.02,597.86,0.876]
[1746652134579,1.27005214,599.01,597.88,0.33451528]
[1746652134877,2.28714875,599.0,597.89,0.67]
[1746652135078,2.28714875,598.99,597.91,0.3344985]
[1746652135377,2.28714875,598.98,597.91,0.3344985]
[1746652135674,1.27005214,598.97,597.91,0.3344985]
[1746652135874,1.27014038,598.96,597.91,0.3344985]
[1746652136073,1.01709661,598.98,597.91,0.3344985]
[1746652136074,1.27014038,598.95,597.91,0.3344985]
[1746652136273,1.2704237,598.94,597.91,0.3344985]
[1746652136477,1.01709661,598.93,597.91,0.3344985]
[1746652136776,1.01709661,598.92,597.91,0.3344985]
[1746652137177,1.01709661,598.91,597.91,0.3344985]
[1746652137779,1.01709661,598.9,597.91,0.3344985]
[1746652138374,1.01709661,598.89,597.91,0.3344985]
[1746652139175,1.01709661,598.88,597.91,0.3344985]
[1746652139580,1.01709661,598.87,597.91,0.3344985]
[1746652139980,1.01709661,598.86,597.91,0.3344985]
[1746652140381,0.33370597,599.33,597.91,0.3344985]
[1746652140582,1.27123123,599.32,597.91,0.3344985]
[1746652140776,1.27123123,599.31,597.91,0.3344985]
[1746652140982,1.27105505,599.3,597.91,0.3344985]
[1746652141183,1.27105505,599.29,597.91,0.3344985]
[1746652141385,2.28946754,599.28,597.91,0.3344985]
[1746652141577,1.27105505,599.27,597.91,0.3344985]
[1746652141883,2.28946754,599.26,597.91,0.3344985]
[1746652142083,1.27139465,599.25,597.91,0.3344985]
[1746652142383,2.28980714,599.24,597.91,0.3344985]
[1746652142586,1.27139465,599.23,597.91,0.3344985]
[1746652142783,1.27139465,599.22,597.91,0.3344985]